fUSD/lending_fUSD_20251017
["ID","MTS","AMOUNT","RATE_DAILY","PERIOD"]
[391695501,1760731848859,-150.0,0.00044681,30]
[391695502,1760731848870,-150.0,0.00044682,30]
[391695503,1760731848886,-150.0,0.00044685,30]
[391695504,1760731848895,-233.00361513,0.00044709,30]
[391695505,1760731848904,-150.0,0.00044713,30]
[391695506,1760731848914,-150.0,0.0004473,30]
[391695507,1760731848923,-150.0,0.00044742,30]
[391695508,1760731848932,-828.368428,0.00044746,2]
[391695510,1760731848942,-233.00361513,0.00044756,30]
[391695511,1760731848952,-150.0,0.0004476,30]
[391695512,1760731848961,-150.0,0.0004478,30]
[391695513,1760731848970,-150.0,0.0004478,30]
[391695514,1760731848979,-150.0,0.00044802,30]
[391695515,1760731848988,-233.00361513,0.00044802,30]
[391695516,1760731848998,-150.0,0.00044802,30]
[391695517,1760731849008,-150.0,0.00044811,30]
[391695518,1760731849017,-150.0,0.00044814,30]
[391695519,1760731849027,-150.0,0.00044838,30]
[391695520,1760731849036,-233.00361513,0.00044849,30]
[391695521,1760731849046,-150.0,0.00044863,30]
[391695522,1760731849057,-231.1368404,0.00044886,20]
[391695523,1760731849068,-150.0,0.0004489,30]
[391695524,1760731849078,-233.00361513,0.00044896,30]
[391695525,1760731849087,-150.0,0.00044903,30]
[391695526,1760731849098,-150.0,0.0004491,30]
[391695527,1760731849107,-150.0,0.00044917,30]
[391695528,1760731849117,-158.11996444,0.00044921,15]
[391695529,1760731849126,-150.0,0.00044923,30]
[391695530,1760731849139,-500.0,0.00044931,120]
[391695531,1760731849155,-500.0,0.00044931,120]
[391695532,1760731849164,-500.0,0.00044931,120]
[391695533,1760731849175,-500.0,0.00044931,120]
[391695534,1760731849184,-232.24,0.00044931,120]
[391695535,1760731849194,-500.0,0.00044931,120]
[391695536,1760731849204,-500.0,0.00044931,120]
[391695537,1760731849213,-500.0,0.00044931,14]
[391695538,1760731849226,-500.0,0.00044931,120]
[391695539,1760731849236,-500.0,0.00044931,120]
[391695540,1760731849247,-500.0,0.00044931,120]
[391695541,1760731849256,-500.0,0.00044931,120]
[391695542,1760731849266,-500.0,0.00044931,120]
[391695543,1760731849275,-500.0,0.00044931,120]
[391695544,1760731849285,-1785.74,0.00044931,120]
[391695545,1760731849295,-500.0,0.00044931,120]
[391695546,1760731849305,-500.0,0.00044931,120]
[391695547,1760731849315,-500.0,0.00044931,120]
[391695548,1760731849324,-500.0,0.00044931,120]
[391695549,1760731849334,-500.0,0.00044931,120]
[391695550,1760731849343,-500.0,0.00044931,120]
[391695552,1760731849353,-500.0,0.00044931,120]
[391695553,1760731849362,-500.0,0.00044931,120]
[391695554,1760731849372,-500.0,0.00044931,120]
[391695555,1760731849381,-500.0,0.00044931,120]
[391695556,1760731849390,-605.69,0.00044931,120]
[391695557,1760731849399,-500.0,0.00044931,120]
[391695558,1760731849409,-638.65,0.00044931,120]
[391695559,1760731849418,-500.0,0.00044931,120]
[391695560,1760731849428,-500.0,0.00044931,120]
[391695561,1760731849437,-500.0,0.00044931,120]
[391695562,1760731849446,-150.0,0.00044943,30]
[391695563,1760731849455,-233.00361513,0.00044943,30]
[391695564,1760731849464,-150.0,0.00044943,30]
[391695565,1760731849474,-150.0,0.00044943,30]
[391695566,1760731849484,-150.0,0.00044943,30]
[391695567,1760731849493,-500.0,0.0004498,120]
[391695568,1760731849503,-150.0,0.00044984,30]
[391695569,1760731849512,-150.0,0.00044986,2]
[391695571,1760731849521,-150.0,0.00044986,2]
[391695572,1760731849531,-150.0,0.00044986,2]
[391695573,1760731849540,-500.0,0.00044986,2]
[391695574,1760731849550,-500.0,0.00044986,2]
[391695575,1760731849559,-150.0,0.00044986,2]
[391695576,1760731849568,-500.0,0.00044986,2]
[391695577,1760731849578,-150.0,0.00044986,2]
[391695578,1760731849587,-150.0,0.00044986,2]
[391695579,1760731849597,-150.0,0.00044986,2]
[391695580,1760731849607,-500.0,0.00044986,2]
[391695581,1760731849616,-500.0,0.00044986,2]
[391695582,1760731849626,-500.0,0.00044986,2]
[391695583,1760731849635,-150.0,0.00044986,2]
[391695584,1760731849644,-500.0,0.00044986,2]
[391695585,1760731849654,-500.0,0.00044986,2]
[391695586,1760731849663,-574.0,0.00044986,2]
[391695587,1760731849672,-500.0,0.00044986,2]
[391695588,1760731849682,-150.0,0.00044986,2]
[391695589,1760731849691,-500.0,0.00044986,2]
[391695590,1760731849701,-500.0,0.00044986,2]
[391695591,1760731849710,-500.0,0.00044986,2]
[391695592,1760731849720,-500.0,0.00044986,2]
[391695593,1760731849729,-300.0,0.00044986,2]
[391695594,1760731849739,-500.0,0.00044986,2]
[391695595,1760731849748,-500.0,0.00044986,2]
[391695596,1760731849757,-150.0,0.00044986,2]
[391695597,1760731849767,-150.0,0.00044986,2]
[391695598,1760731849777,-500.0,0.00044986,2]
[391695599,1760731849787,-500.0,0.00044986,2]
[391695600,1760731849796,-500.0,0.00044986,2]
[391695601,1760731849806,-743.0,0.00044986,2]
[391695603,1760731849815,-500.0,0.00044986,2]
[391695604,1760731849825,-500.0,0.00044986,2]
[391695605,1760731849835,-193.76594058,0.0004499,120]
[391695606,1760731849844,-233.00361513,0.0004499,30]
[391695607,1760731849854,-116199.8634581,0.00044994,2]
[391695608,1760731849864,-150.0,0.00044996,30]
[391695609,1760731849873,-151.0,0.00044997,120]
[391695610,1760731849883,-500.0,0.00044998,120]
[391695611,1760731849892,-500.0,0.00044998,120]
[391695612,1760731849901,-500.0,0.00044998,120]
[391695613,1760731849911,-10000.0,0.00044998,60]
[391695614,1760731849920,-200.0,0.00044998,30]
[391695615,1760731849930,-207.4,0.00044998,30]
[391695616,1760731849939,-215.0738,0.00044998,30]
[391695617,1760731849948,-223.0315306,0.00044998,30]
[391695618,1760731849958,-231.28369723,0.00044998,30]
[391695620,1760731849968,-239.84119403,0.00044998,30]
[391695621,1760731849977,-248.71531821,0.00044998,30]
[391695622,1760731849987,-257.91778498,0.00044998,30]
[391695623,1760731849996,-267.46074303,0.00044998,30]
[391695624,1760731850006,-277.35679052,0.00044998,30]
[391695625,1760731850015,-287.61899177,0.00044998,30]
[391695626,1760731850025,-298.26089446,0.00044998,30]
[391695627,1760731850036,-309.29654756,0.00044998,30]
[391695628,1760731850046,-320.74051982,0.00044998,30]
[391695629,1760731850059,-481.71360124,0.00044998,30]
[391695630,1760731850069,-151613.3537585,0.00044999,2]
[391695631,1760731850078,-151.0,0.00044999,120]
[391695632,1760731850088,-156.587,0.00044999,120]
[391695633,1760731850098,-11131.9745675,0.00044999,2]
[391695634,1760731850108,-150.0,0.00044999,120]
[391695635,1760731850118,-1596.5553095,0.00044999,2]
[391695636,1760731850128,-212.98,0.00044999,120]
[391695637,1760731850140,-250.0,0.00044999,120]
[391695638,1760731850150,-1000.0,0.00044999,120]
[391695639,1760731850159,-6888.0,0.00044999,120]
[391695640,1760731850169,-250.0,0.00044999,120]
[391695641,1760731850178,-1000.0,0.00044999,120]
[391695642,1760731850188,-151.0,0.00044999,120]
[391695643,1760731850197,-7142.856,0.00044999,120]
[391695644,1760731850207,-250.0,0.00044999,120]
[391695645,1760731850217,-1000.0,0.00044999,120]
[391695646,1760731850226,-156.587,0.00044999,120]
[391695647,1760731850235,-7407.141672,0.00044999,120]
[391695648,1760731850245,-250.0,0.00044999,120]
[391695649,1760731850254,-1000.0,0.00044999,120]
[391695651,1760731850264,-162.380719,0.00044999,120]
[391695652,1760731850273,-7681.20591386,0.00044999,120]
[391695653,1760731850285,-250.0,0.00044999,120]
[391695654,1760731850294,-1000.0,0.00044999,120]
[391695655,1760731850304,-1000.0,0.00044999,120]
[391695656,1760731850313,-500.0,0.00044999,120]
[391695657,1760731850323,-168.3888056,0.00044999,120]
[391695658,1760731850333,-7965.41053268,0.00044999,120]
[391695659,1760731850342,-1000.0,0.00044999,120]
[391695660,1760731850352,-500.0,0.00044999,120]
[391695661,1760731850362,-8260.13072239,0.00044999,120]
[391695662,1760731850371,-250.0,0.00044999,120]
[391695663,1760731850381,-1000.0,0.00044999,120]
[391695664,1760731850390,-1000.0,0.00044999,120]
[391695665,1760731850398,-500.0,0.00044999,120]
[391695666,1760731850407,-250.0,0.00044999,120]
[391695667,1760731850416,-8565.75555911,0.00044999,120]
[391695668,1760731850426,-1000.0,0.00044999,120]
[391695669,1760731850435,-1000.0,0.00044999,120]
[391695670,1760731850447,-500.0,0.00044999,120]
[391695671,1760731850457,-250.0,0.00044999,120]
[391695672,1760731850467,-1000.0,0.00044999,120]
[391695673,1760731850478,-8882.6885148,0.00044999,120]
[391695674,1760731850491,-151.0,0.00044999,120]
[391695675,1760731850501,-239.79609754,0.00044999,120]
[391695676,1760731850510,-1000.0,0.00044999,120]
[391695677,1760731850520,-250.0,0.00044999,120]
[391695678,1760731850530,-526.63422497,0.00044999,120]
[391695679,1760731850541,-1000.0,0.00044999,120]
[391695680,1760731850551,-500.0,0.00044999,120]
[391695681,1760731850560,-9211.34798985,0.00044999,120]
[391695682,1760731850570,-250.0,0.00044999,120]
[391695683,1760731850579,-1000.0,0.00044999,120]
[391695684,1760731850588,-500.0,0.00044999,120]
[391695685,1760731850598,-9552.16786547,0.00044999,120]
[391695686,1760731850607,-250.0,0.00044999,120]
[391695687,1760731850617,-1000.0,0.00044999,120]
[391695688,1760731850626,-250.0,0.00044999,120]
[391695689,1760731850635,-500.0,0.00044999,120]
[391695690,1760731850644,-9905.5980765,0.00044999,120]
[391695691,1760731850654,-250.0,0.00044999,120]
[391695692,1760731850663,-1000.0,0.00044999,120]
[391695693,1760731850673,-500.0,0.00044999,120]
[391695694,1760731850682,-10272.10520533,0.00044999,120]
[391695695,1760731850691,-250.0,0.00044999,120]
[391695696,1760731850701,-1000.0,0.00044999,120]
[391695697,1760731850711,-500.0,0.00044999,120]
[391695698,1760731850720,-10652.17309792,0.00044999,120]
[391695699,1760731850730,-250.0,0.00044999,120]
[391695700,1760731850739,-151.0,0.00044999,120]
[391695701,1760731850748,-1000.0,0.00044999,120]
[391695702,1760731850758,-300.0,0.00044999,120]
[391695703,1760731850767,-3000.0,0.00044999,120]
[391695704,1760731850776,-500.0,0.00044999,120]
[391695705,1760731850787,-11046.30350255,0.00044999,120]
[391695706,1760731850796,-250.0,0.00044999,120]
[391695707,1760731850806,-151.0,0.00044999,120]
[391695708,1760731850816,-1000.0,0.00044999,120]
[391695709,1760731850825,-311.1,0.00044999,120]
[391695710,1760731850835,-520.0,0.00044999,120]
[391695711,1760731850846,-3000.0,0.00044999,120]
[391695712,1760731850856,-500.0,0.00044999,120]
[391695713,1760731850866,-11455.01673214,0.00044999,120]
[391695714,1760731850875,-282.14913794,0.00044999,120]
[391695715,1760731850886,-151.0,0.00044999,120]
[391695716,1760731850896,-1000.0,0.00044999,120]
[391695717,1760731850906,-199.77036719,0.00044999,120]
[391695718,1760731850915,-539.24,0.00044999,120]
[391695719,1760731850925,-3000.0,0.00044999,120]
[391695720,1760731850935,-500.0,0.00044999,120]
[391695721,1760731850944,-11878.85235123,0.00044999,120]
[391695722,1760731850955,-151.0,0.00044999,120]
[391695723,1760731850964,-1000.0,0.00044999,120]
[391695724,1760731850974,-3000.0,0.00044999,120]
[391695725,1760731850984,-500.0,0.00044999,120]
[391695726,1760731850994,-11469.51739614,0.00044999,120]
[391695727,1760731851004,-151.0,0.00044999,120]
[391695728,1760731851013,-559.19188,0.00044999,120]
[391695729,1760731851023,-1000.0,0.00044999,120]
[391695730,1760731851033,-3000.0,0.00044999,120]
[391695731,1760731851043,-500.0,0.00044999,120]
[391695732,1760731851052,-151.0,0.00044999,120]
[391695733,1760731851067,-480.35272186,0.00044999,120]
[391695734,1760731851077,-3000.0,0.00044999,120]
[391695735,1760731851093,-1000.0,0.00044999,120]
[391695736,1760731851103,-151.0,0.00044999,120]
[391695737,1760731851112,-500.0,0.00044999,120]
[391695738,1760731851123,-3000.0,0.00044999,120]
[391695739,1760731851134,-151.0,0.00044999,120]
[391695740,1760731851144,-500.0,0.00044999,120]
[391695741,1760731851153,-3000.0,0.00044999,120]
[391695742,1760731851163,-299.00491062,0.00044999,120]
[391695743,1760731851172,-500.0,0.00044999,120]
[391695744,1760731851182,-151.0,0.00044999,120]
[391695745,1760731851192,-3000.0,0.00044999,120]
[391695746,1760731851201,-250.0,0.00044999,120]
[391695747,1760731851211,-500.0,0.00044999,120]
[391695748,1760731851221,-300.0,0.00044999,120]
[391695749,1760731851231,-3000.0,0.00044999,120]
[391695750,1760731851241,-250.0,0.00044999,120]
[391695751,1760731851251,-500.0,0.00044999,120]
[391695752,1760731851262,-1000.0,0.00044999,120]
[391695753,1760731851271,-1405.84956205,0.00044999,120]
[391695754,1760731851281,-250.0,0.00044999,120]
[391695755,1760731851292,-1000.0,0.00044999,120]
[391695756,1760731851301,-500.0,0.00044999,120]
[391695757,1760731851433,-250.0,0.00044999,120]
[391695758,1760731851458,-1000.0,0.00044999,120]
[391695759,1760731851467,-250.0,0.00044999,120]
[391695760,1760731851477,-1000.0,0.00044999,120]
[391695761,1760731851486,-250.0,0.00044999,120]
[391695762,1760731851495,-1000.0,0.00044999,120]
[391695763,1760731851505,-250.0,0.00044999,120]
[391695764,1760731851514,-1000.0,0.00044999,120]
[391695765,1760731851523,-1000.0,0.00044999,120]
[391695766,1760731851533,-358.0422157,0.00044999,120]
[391695767,1760731851543,-500.0,0.00044999,120]
[391695768,1760731851552,-1000.0,0.00044999,120]
[391695769,1760731851563,-557.5788265,0.00044999,120]
[391695770,1760731851574,-1000.0,0.00044999,120]
[391695771,1760731851583,-1000.0,0.00044999,120]
[391695772,1760731851593,-250.0,0.00044999,120]
[391695773,1760731851607,-1000.0,0.00044999,120]
[391695774,1760731851616,-1000.0,0.00044999,120]
[391695775,1760731851625,-250.0,0.00044999,120]
[391695776,1760731851634,-1000.0,0.00044999,120]
[391695777,1760731851643,-250.0,0.00044999,120]
[391695778,1760731851652,-1000.0,0.00044999,120]
[391695779,1760731851661,-250.0,0.00044999,120]
[391695780,1760731851670,-1000.0,0.00044999,120]
[391695781,1760731851679,-250.0,0.00044999,120]
[391695782,1760731851688,-1000.0,0.00044999,120]
[391695783,1760731851698,-250.0,0.00044999,120]
[391695784,1760731851707,-1000.0,0.00044999,120]
[391695785,1760731851716,-250.0,0.00044999,120]
[391695786,1760731851725,-1000.0,0.00044999,120]
[391695787,1760731851735,-250.0,0.00044999,120]
[391695788,1760731851744,-1000.0,0.00044999,120]
[391695789,1760731851753,-250.0,0.00044999,120]
[391695790,1760731851762,-1000.0,0.00044999,120]
[391695791,1760731851771,-250.0,0.00044999,120]
[391695792,1760731851781,-250.0,0.00044999,120]
[391695793,1760731851791,-250.0,0.00044999,120]
[391695794,1760731851800,-250.0,0.00044999,120]
[391695795,1760731851809,-250.0,0.00044999,120]
[391695796,1760731851819,-250.0,0.00044999,120]
[391695797,1760731851828,-250.0,0.00044999,120]
[391695798,1760731851837,-250.0,0.00044999,120]
[391695799,1760731851847,-250.0,0.00044999,120]
[391695800,1760731851856,-250.0,0.00044999,120]
[391695801,1760731851865,-277972.82369886,0.00045,120]
[391695802,1760731851875,-371439.0,0.00045,120]
[391695803,1760731851884,-223.92,0.00045,2]
[391695804,1760731851893,-223.54,0.00045,30]
[391695805,1760731851903,-200.0,0.00045,7]
[391695806,1760731851912,-600.0,0.00045,120]
[391695807,1760731851923,-200.0,0.00045,7]
[391695808,1760731851932,-200.0,0.00045,7]
[391695809,1760731851942,-25397.98,0.00045,120]
[391695810,1760731851951,-200.0,0.00045,7]
[391695811,1760731851960,-150.0,0.00045009,30]
[391695812,1760731851970,-150.0,0.00045025,30]
[391695813,1760731851980,-150.0,0.00045025,30]
[391695814,1760731851990,-233.00361513,0.00045037,30]
[391695815,1760731851999,-150.0,0.00045041,2]
[391695816,1760731852009,-200.0,0.00045041,2]
[391695817,1760731852018,-500.0,0.00045041,2]
[391695818,1760731852027,-500.0,0.00045041,2]
[391695819,1760731852036,-150.0,0.00045041,2]
[391695820,1760731852045,-500.0,0.00045041,2]
[391695821,1760731852054,-173.96283758,0.00045041,2]
[391695822,1760731852067,-223.8937127,0.00045041,2]
[391695823,1760731852076,-150.0,0.00045041,2]
[391695824,1760731852087,-578.14792994,0.00045041,2]
[391695825,1760731852096,-500.0,0.00045041,2]
[391695826,1760731852106,-500.0,0.00045041,2]
[391695827,1760731852115,-289.83243189,0.00045041,2]
[391695828,1760731852124,-500.0,0.00045041,2]
[391695829,1760731852136,-500.0,0.00045041,2]
[391695830,1760731852145,-574.0,0.00045041,2]
[391695831,1760731852154,-500.0,0.00045041,2]
[391695832,1760731852163,-150.81914312,0.00045041,2]
[391695833,1760731852172,-500.0,0.00045041,2]
[391695834,1760731852181,-500.0,0.00045041,2]
[391695835,1760731852190,-500.0,0.00045041,2]
[391695836,1760731852200,-500.0,0.00045041,2]
[391695837,1760731852210,-300.0,0.00045041,2]
[391695838,1760731852219,-500.0,0.00045041,2]
[391695839,1760731852229,-210.80223538,0.00045041,2]
[391695840,1760731852239,-500.0,0.00045041,2]
[391695841,1760731852248,-500.0,0.00045041,2]
[391695842,1760731852257,-500.0,0.00045041,2]
[391695843,1760731852267,-743.0,0.00045041,2]
[391695844,1760731852276,-500.0,0.00045041,2]
[391695845,1760731852287,-500.0,0.00045041,2]
[391695846,1760731852296,-150.0,0.00045044,30]
[391695847,1760731852306,-150.0,0.0004505,30]
[391695848,1760731852317,-150.0,0.00045073,30]
[391695849,1760731852327,-150.0,0.00045075,30]
[391695850,1760731852336,-233.00361513,0.00045084,30]
[391695851,1760731852346,-150.0,0.00045096,2]
[391695852,1760731852356,-500.0,0.00045096,2]
[391695853,1760731852365,-500.0,0.00045096,2]
[391695854,1760731852375,-154.53232735,0.00045096,2]
[391695855,1760731852384,-500.0,0.00045096,2]
[391695856,1760731852393,-150.0,0.00045096,2]
[391695857,1760731852403,-500.0,0.00045096,2]
[391695858,1760731852412,-303.07609336,0.00045096,2]
[391695859,1760731852421,-416.06059713,0.00045096,2]
[391695860,1760731852431,-500.0,0.00045096,2]
[391695861,1760731852439,-574.0,0.00045096,2]
[391695862,1760731852448,-500.0,0.00045096,2]
[391695863,1760731852457,-500.0,0.00045096,2]
[391695864,1760731852467,-500.0,0.00045096,2]
[391695865,1760731852476,-500.0,0.00045096,2]
[391695866,1760731852486,-500.0,0.00045096,2]
[391695867,1760731852495,-300.0,0.00045096,2]
[391695868,1760731852504,-500.0,0.00045096,2]
[391695869,1760731852514,-500.0,0.00045096,2]
[391695870,1760731852524,-500.0,0.00045096,2]
[391695871,1760731852533,-500.0,0.00045096,2]
[391695872,1760731852542,-743.0,0.00045096,2]
[391695873,1760731852551,-500.0,0.00045096,2]
[391695874,1760731852561,-500.0,0.00045096,2]
[391695875,1760731852571,-1000.0,0.000451,7]
[391695876,1760731852580,-150.0,0.00045104,30]
[391695877,1760731852590,-150.0,0.00045108,30]
[391695878,1760731852599,-233.00361513,0.00045131,30]
[391695879,1760731852609,-150.0,0.00045147,30]
[391695880,1760731852619,-150.0,0.0004515,2]
[391695881,1760731852628,-500.0,0.0004515,2]
[391695882,1760731852637,-500.0,0.0004515,2]
[391695883,1760731852647,-500.0,0.0004515,2]
[391695884,1760731852656,-151.78574834,0.0004515,2]
[391695885,1760731852666,-407.23852358,0.0004515,2]
[391695886,1760731852676,-500.0,0.0004515,2]
[391695887,1760731852685,-574.0,0.0004515,2]
[391695888,1760731852694,-500.0,0.0004515,2]
[391695889,1760731852703,-500.0,0.0004515,2]
[391695890,1760731852712,-500.0,0.0004515,2]
[391695891,1760731852722,-500.0,0.0004515,2]
[391695892,1760731852731,-500.0,0.0004515,2]
[391695893,1760731852741,-300.0,0.0004515,2]
[391695894,1760731852750,-500.0,0.0004515,2]
[391695895,1760731852759,-500.0,0.0004515,2]
[391695896,1760731852769,-500.0,0.0004515,2]
[391695897,1760731852779,-152.53651065,0.0004515,2]
[391695898,1760731852790,-743.0,0.0004515,2]
[391695899,1760731852799,-500.0,0.0004515,2]
[391695900,1760731852808,-629.6173567,0.0004515,2]
[391695901,1760731852818,-150.0,0.00045154,30]
[391695902,1760731852827,-150.0,0.00045165,30]
[391695903,1760731852837,-150.0,0.00045165,30]
[391695904,1760731852846,-233.00361513,0.00045178,30]
[391695905,1760731852856,-153.0,0.000452,120]
[391695906,1760731852866,-150.0,0.00045202,30]
[391695907,1760731852875,-500.0,0.00045205,120]
[391695908,1760731852884,-500.0,0.00045205,120]
[391695909,1760731852894,-500.0,0.00045205,120]
[391695910,1760731852903,-500.0,0.00045205,120]
[391695911,1760731852912,-500.0,0.00045205,120]
[391695912,1760731852922,-500.0,0.00045205,120]
[391695913,1760731852931,-500.0,0.00045205,14]
[391695914,1760731852940,-500.0,0.00045205,120]
[391695915,1760731852950,-500.0,0.00045205,120]
[391695916,1760731852959,-500.0,0.00045205,120]
[391695917,1760731852967,-500.0,0.00045205,120]
[391695918,1760731852977,-500.0,0.00045205,120]
[391695919,1760731852986,-190.92818409,0.00045205,120]
[391695920,1760731852995,-1785.74,0.00045205,120]
[391695921,1760731853005,-500.0,0.00045205,120]
[391695922,1760731853015,-465.39809836,0.00045205,120]
[391695923,1760731853024,-272.27114154,0.00045205,120]
[391695924,1760731853034,-500.0,0.00045205,120]
[391695925,1760731853043,-500.0,0.00045205,120]
[391695926,1760731853053,-500.0,0.00045205,120]
[391695927,1760731853066,-500.0,0.00045205,120]
[391695928,1760731853076,-500.0,0.00045205,120]
[391695929,1760731853086,-632.33,0.00045205,120]
[391695930,1760731853095,-605.69,0.00045205,120]
[391695931,1760731853105,-198.41,0.00045205,120]
[391695932,1760731853116,-500.0,0.00045205,120]
[391695933,1760731853125,-500.0,0.00045205,120]
[391695934,1760731853136,-500.0,0.00045205,120]
[391695935,1760731853145,-500.0,0.00045205,120]
[391695936,1760731853155,-200.0,0.00045205,2]
[391695937,1760731853164,-500.0,0.00045205,2]
[391695938,1760731853173,-500.0,0.00045205,2]
[391695939,1760731853183,-610.64745741,0.00045205,2]
[391695940,1760731853192,-500.0,0.00045205,2]
[391695941,1760731853202,-574.0,0.00045205,2]
[391695942,1760731853211,-562.82213547,0.00045205,2]
[391695943,1760731853220,-500.0,0.00045205,2]
[391695944,1760731853230,-500.0,0.00045205,2]
[391695945,1760731853239,-500.0,0.00045205,2]
[391695946,1760731853248,-500.0,0.00045205,2]
[391695947,1760731853258,-351.4963499,0.00045205,2]
[391695948,1760731853267,-500.0,0.00045205,2]
[391695949,1760731853276,-500.0,0.00045205,2]
[391695950,1760731853286,-500.0,0.00045205,2]
[391695951,1760731853296,-743.0,0.00045205,2]
[391695952,1760731853305,-500.0,0.00045205,2]
[391695953,1760731853315,-150.0,0.00045207,30]
[391695954,1760731853325,-150.0,0.00045211,30]
[391695955,1760731853334,-150.0,0.00045225,30]
[391695956,1760731853343,-233.00361513,0.00045225,30]
[391695957,1760731853352,-150.0,0.00045225,30]
[391695958,1760731853361,-500.0,0.00045232,30]
[391695959,1760731853371,-150.0,0.00045232,30]
[391695960,1760731853380,-150.0,0.00045253,30]
[391695961,1760731853389,-500.0,0.0004526,2]
[391695962,1760731853399,-500.0,0.0004526,2]
[391695963,1760731853408,-222.88851174,0.0004526,2]
[391695964,1760731853417,-574.0,0.0004526,2]
[391695965,1760731853426,-500.0,0.0004526,2]
[391695966,1760731853436,-500.0,0.0004526,2]
[391695967,1760731853445,-500.0,0.0004526,2]
[391695968,1760731853455,-500.0,0.0004526,2]
[391695969,1760731853464,-500.0,0.0004526,2]
[391695970,1760731853473,-500.0,0.0004526,2]
[391695971,1760731853482,-500.0,0.0004526,2]
[391695972,1760731853492,-743.0,0.0004526,2]
[391695973,1760731853501,-500.0,0.0004526,2]
[391695974,1760731853511,-150.0,0.0004527,30]
[391695975,1760731853520,-150.0,0.0004527,30]
[391695976,1760731853530,-233.00361513,0.00045272,30]
[391695977,1760731853540,-150.0,0.00045286,30]
[391695978,1760731853550,-150.0,0.00045306,30]
[391695979,1760731853559,-2000.0,0.00045307,120]
[391695980,1760731853569,-345.774389,0.00045307,120]
[391695981,1760731853578,-200.0,0.00045307,120]
[391695982,1760731853587,-150.0,0.00045311,30]
[391695983,1760731853596,-500.0,0.00045315,2]
[391695984,1760731853610,-500.0,0.00045315,2]
[391695985,1760731853619,-574.0,0.00045315,2]
[391695986,1760731853628,-500.0,0.00045315,2]
[391695987,1760731853637,-500.0,0.00045315,2]
[391695988,1760731853646,-500.0,0.00045315,2]
[391695989,1760731853655,-500.0,0.00045315,2]
[391695990,1760731853664,-500.0,0.00045315,2]
[391695991,1760731853674,-500.0,0.00045315,2]
[391695992,1760731853684,-500.0,0.00045315,2]
[391695993,1760731853693,-743.0,0.00045315,2]
[391695994,1760731853702,-500.0,0.00045315,2]
[391695995,1760731853712,-233.00361513,0.00045319,30]
[391695996,1760731853721,-150.0,0.00045331,30]
[391695997,1760731853731,-150.0,0.00045331,30]
[391695998,1760731853740,-167.53854076,0.00045341,19]
[391695999,1760731853750,-150.0,0.00045346,30]
[391696000,1760731853759,-233.00361513,0.00045366,30]
[391696001,1760731853768,-500.0,0.0004537,2]
[391696002,1760731853777,-500.0,0.0004537,2]
[391696003,1760731853787,-574.0,0.0004537,2]
[391696004,1760731853796,-500.0,0.0004537,2]
[391696005,1760731853806,-500.0,0.0004537,2]
[391696006,1760731853816,-500.0,0.0004537,2]